bitfinex/quotes_ETHUSD_20230117
["timestamp","ask_amount","ask_price","bid_price","bid_amount"]
[1673939133224,0.45105486,1560.5,1560.4,24.83375502]
[1673939133440,0.45105486,1560.5,1560.4,23.87486212]
[1673939138647,0.45105486,1560.5,1560.4,24.23971828]
[1673939138962,0.45105486,1560.5,1560.4,23.87486212]
[1673939140338,0.45105486,1560.5,1560.4,19.94278654]
[1673939140550,0.45105486,1560.5,1560.4,13.53417654]
[1673939142645,0.45105486,1560.5,1560.4,19.94278654]
[1673939142819,0.45105486,1560.5,1560.4,21.38304421]
[1673939143382,0.45105486,1560.5,1560.4,19.94279567]
[1673939145064,0.45105486,1560.5,1560.4,21.38304421]
[1673939145273,0.45105486,1560.5,1560.4,24.4026959]
[1673939147264,0.45105486,1560.5,1560.4,24.88283446]
[1673939147475,0.45105486,1560.5,1560.4,26.3212413]
[1673939147789,0.45105486,1560.5,1560.4,24.4008542]
[1673939148890,0.45105486,1560.5,1560.4,26.3212413]
[1673939149309,0.45105486,1560.5,1560.4,24.4008542]
[1673939150943,0.45105486,1560.5,1560.4,26.3212413]
[1673939151109,0.45105486,1560.5,1560.4,24.88283446]
[1673939151307,0.29345574,1560.5,1560.4,25.85282035]
[1673939151527,0.29345574,1560.5,1560.4,31.84152157]
[1673939151781,0.29345574,1560.5,1560.4,29.44399662]
[1673939151949,0.29345574,1560.5,1560.4,25.91452528]
[1673939152369,0.29345574,1560.5,1560.4,29.45181866]
[1673939152577,0.03135423,1560.6,1560.5,0.17177978]
[1673939152843,0.03135423,1560.6,1560.5,26.97851144]
[1673939153053,0.03135423,1560.6,1560.5,27.88344552]
[1673939158355,0.03135423,1560.6,1560.5,29.80021713]
[1673939159051,0.03050484,1560.7,1560.6,1.963]
[1673939159261,4.84e-06,1560.7,1560.6,23.11683079]
[1673939159421,4.84e-06,1560.7,1560.6,40.32153191]
[1673939160940,4.84e-06,1560.7,1560.6,42.23726825]
[1673939161729,4.84e-06,1560.7,1560.6,40.32153191]
[1673939162991,4.84e-06,1560.7,1560.6,41.74703342]
[1673939163220,4.84e-06,1560.7,1560.6,42.23674494]
[1673939163705,4.84e-06,1560.7,1560.6,40.32116551]
[1673939163995,0.03456593,1560.8,1560.7,14.74875516]
[1673939164147,0.03456593,1560.8,1560.7,31.27323326]
[1673939164357,0.03061343,1560.8,1560.7,29.35768709]
[1673939164695,0.03538052,1560.9,1560.7,29.35768709]
[1673939164696,0.03538052,1560.9,1560.7,37.49678963]
[1673939165046,0.0526244,1561.1,1560.9,1.0]
[1673939165363,0.0526244,1561.1,1561.0,33.20663884]
[1673939165528,0.0526244,1561.1,1561.0,42.12372022]
[1673939165882,0.0526244,1561.1,1561.0,44.64498415]
[1673939166624,0.0526244,1561.1,1561.0,44.16489058]
[1673939166625,0.01956945,1561.1,1561.0,44.16489058]
[1673939167004,0.01956945,1561.1,1561.0,43.67517906]
[1673939167335,0.01956945,1561.1,1561.0,44.16489058]
[1673939168587,0.01956945,1561.1,1561.0,46.07922298]
[1673939168930,0.01956945,1561.1,1561.0,44.16489058]
[1673939170028,0.01956945,1561.1,1561.0,46.07614461]
[1673939170347,0.01956945,1561.1,1561.0,44.16489058]
[1673939170786,0.55765088,1561.1,1561.0,44.16489058]
[1673939171208,0.55765088,1561.1,1561.0,45.12008852]
[1673939172140,0.55765088,1561.1,1561.0,43.68585289]
[1673939173224,0.55765088,1561.1,1561.0,43.70369112]
[1673939173606,0.03538052,1561.2,1561.0,45.13792995]
[1673939173817,0.03538052,1561.2,1561.1,12.23027323]
[1673939174037,0.03538052,1561.2,1561.1,25.09173323]
[1673939174347,0.03538052,1561.2,1561.1,25.59928298]
[1673939176293,0.03538052,1561.2,1561.1,25.67820284]
[1673939176756,0.03538052,1561.2,1561.1,25.17065309]
[1673939177171,0.03538052,1561.2,1561.1,25.67820284]
[1673939177690,0.03538052,1561.2,1561.1,40.99644669]
[1673939178031,0.03538052,1561.2,1561.1,25.67820284]
[1673939180157,0.03538052,1561.2,1561.1,25.17065309]
[1673939181170,0.03538052,1561.2,1561.1,25.67820284]
[1673939181379,0.022118,1561.2,1561.1,25.67820284]
[1673939182200,0.022118,1561.2,1561.1,26.63340398]
[1673939184102,0.022118,1561.2,1561.1,26.12585423]
[1673939185320,0.022118,1561.2,1561.1,26.63340398]
[1673939188238,0.022118,1561.2,1561.1,28.06764281]
[1673939189036,0.022118,1561.2,1561.1,27.56009306]
[1673939189252,0.022118,1561.2,1561.1,29.30264281]
[1673939190261,0.022118,1561.2,1561.1,27.83989192]
[1673939190450,0.022118,1561.2,1561.1,31.37913422]
[1673939190671,0.000118,1561.2,1561.1,31.37913422]
[1673939190998,0.06094296,1561.4,1561.2,14.7553398]
[1673939191160,0.06094296,1561.4,1561.2,30.09961375]
[1673939192197,0.06094296,1561.4,1561.2,31.53385258]
[1673939193148,0.06094296,1561.4,1561.2,30.09961375]
[1673939194421,0.06094296,1561.4,1561.2,31.53385258]
[1673939195098,0.06094296,1561.4,1561.2,30.57810128]
[1673939195561,0.06094296,1561.4,1561.2,30.10039902]
[1673939195982,0.06094296,1561.4,1561.2,31.53463785]
[1673939196231,0.06094296,1561.4,1561.2,30.07055153]
[1673939196437,0.03494449,1561.3,1561.2,30.07055153]
[1673939197251,0.03494449,1561.3,1561.2,30.57810128]
[1673939198311,0.03494449,1561.3,1561.2,32.48935531]
[1673939198586,0.03494449,1561.3,1561.2,31.05511648]
[1673939199405,0.03494449,1561.3,1561.2,29.82011648]
[1673939200359,0.03494449,1561.3,1561.2,32.21318495]
[1673939200783,0.03494449,1561.3,1561.2,30.30193092]
[1673939202321,0.03494449,1561.3,1561.2,29.07093092]
[1673939203176,0.06094296,1561.4,1561.2,29.07093092]
[1673939203390,0.06094296,1561.4,1561.3,10.94081007]
[1673939203582,0.06094296,1561.4,1561.3,23.80063007]
[1673939203795,0.06094296,1561.4,1561.3,24.75195584]
[1673939204332,0.06094296,1561.4,1561.3,24.72038165]
[1673939205330,0.06094296,1561.4,1561.3,25.2279314]
[1673939205623,0.06094296,1561.4,1561.3,25.2299314]
[1673939205841,0.06094296,1561.4,1561.3,25.2279314]
[1673939206880,0.06094296,1561.4,1561.3,25.23361323]
[1673939207049,0.06094296,1561.4,1561.3,25.23360535]
[1673939207268,0.06094296,1561.4,1561.3,22.83486293]
[1673939207625,0.06094296,1561.4,1561.3,25.23361408]
[1673939209052,0.06094296,1561.4,1561.3,24.72606433]
[1673939209250,0.06094296,1561.4,1561.3,25.23361408]
[1673939211054,0.06094296,1561.4,1561.3,27.15264369]
[1673939211265,0.06094296,1561.4,1561.3,24.24552278]
[1673939211504,0.06094296,1561.4,1561.3,24.2455003]
[1673939214195,0.06094296,1561.4,1561.3,21.84674915]
[1673939215350,0.06094296,1561.4,1561.3,23.28635428]
[1673939216042,0.06094296,1561.4,1561.3,21.84674915]
[1673939217589,0.06094296,1561.4,1561.3,24.2455003]
[1673939217803,0.06094296,1561.4,1561.3,21.84674915]
[1673939218649,0.06094296,1561.4,1561.3,22.32652099]
[1673939218871,0.06094296,1561.4,1561.3,26.32386611]
[1673939219813,0.03752713,1561.4,1561.3,26.32386611]
[1673939220835,0.03752713,1561.4,1561.3,25.16011496]
[1673939222013,7.13e-06,1561.4,1561.3,28.04082739]
[1673939222856,7.13e-06,1561.4,1561.3,25.16011496]
[1673939225675,7.13e-06,1561.4,1561.3,26.32456684]
[1673939225864,7.13e-06,1561.4,1561.3,21.84740841]
[1673939228654,2.16840116,1561.4,1561.3,17.85997389]
[1673939228867,2.16840116,1561.4,1561.3,18.37606384]
[1673939229016,2.16840116,1561.4,1561.3,17.41619787]
[1673939229226,2.16840116,1561.4,1561.3,18.37606642]
[1673939229684,2.16840116,1561.4,1561.3,21.37806642]
[1673939229897,2.16840116,1561.4,1561.3,21.37606642]
[1673939231639,2.16840116,1561.4,1561.3,18.25944235]
[1673939231761,2.16840116,1561.4,1561.3,16.81968855]
[1673939232132,3.39840116,1561.4,1561.3,16.81968855]
[1673939232438,4.86340116,1561.4,1561.3,0.05]
[1673939232764,4.86340116,1561.4,1561.2,6.4680198]
[1673939232972,2.459,1561.3,1561.2,6.4680198]
[1673939233535,2.462,1561.3,1561.2,6.4680198]
[1673939234063,2.459,1561.3,1561.2,6.4680198]
[1673939234483,2.459,1561.3,1561.2,12.8733398]
[1673939234752,2.459,1561.3,1561.2,15.8733398]
[1673939235122,1.227,1561.3,1561.2,15.8733398]
[1673939237692,1.227,1561.3,1561.2,9.4680198]
[1673939239354,2.459,1561.3,1561.2,9.4680198]
[1673939239967,2.459,1561.3,1561.2,3.0626998]
[1673939240177,2.459,1561.3,1561.2,3.0126998]
[1673939240897,2.689,1561.3,1561.2,3.0126998]
[1673939242094,2.689,1561.3,1561.2,0.0126998]
[1673939242282,2.689,1561.3,1561.2,3.0126998]
[1673939242491,2.689,1561.3,1561.2,0.0126998]
[1673939242953,2.692,1561.3,1561.2,0.0126998]
[1673939243266,2.689,1561.3,1561.2,0.0126998]
[1673939243829,2.692,1561.3,1561.2,0.0126998]
[1673939244081,2.689,1561.3,1561.2,0.0126998]
[1673939244741,2.689,1561.3,1561.2,12.8233398]
[1673939244901,2.459,1561.3,1561.2,15.8733398]
[1673939245522,1.235,1561.3,1561.2,15.8733398]
[1673939245792,1.232,1561.3,1561.2,15.8733398]
[1673939246954,1.232,1561.3,1561.2,3.0626998]
[1673939247272,1.462,1561.3,1561.2,3.0126998]
[1673939247789,2.688,1561.3,1561.2,3.01006943]
[1673939248619,3.688,1561.3,1561.2,3.01006943]
[1673939248838,2.688,1561.3,1561.2,0.01006943]
[1673939249147,2.70739403,1561.3,1561.2,0.01006943]
[1673939252532,3.70739403,1561.3,1561.2,0.01006943]
[1673939252746,2.70739403,1561.3,1561.2,0.01006943]
[1673939254948,2.71039403,1561.3,1561.2,0.01006943]
[1673939255157,2.70739403,1561.3,1561.2,0.01006943]
[1673939258569,1.48139403,1561.3,1561.2,0.01006943]
[1673939259087,2.48139403,1561.3,1561.2,0.01006943]
[1673939259259,1.48139403,1561.3,1561.2,0.01006943]
[1673939259875,2.48139403,1561.3,1561.2,0.01006943]
[1673939260351,1.48139403,1561.3,1561.2,0.01006943]
[1673939261448,2.48139403,1561.3,1561.2,0.01006943]
[1673939261658,1.48139403,1561.3,1561.2,0.01006943]
[1673939262079,2.48139403,1561.3,1561.2,0.01006943]
[1673939262295,20.30149619,1561.3,1561.2,0.01006943]
[1673939262532,24.67132416,1561.3,1561.2,0.01006943]
[1673939262706,27.78794823,1561.3,1561.2,0.01006943]
[1673939262919,24.17107921,1561.3,1561.2,0.01006943]
[1673939263129,3.14775846,1561.3,1561.2,0.01006943]
[1673939263399,1.48439403,1561.3,1561.2,0.01006943]
[1673939263967,1.235,1561.3,1561.2,0.01006943]
[1673939264200,11.00262486,1561.4,1561.2,0.01006943]
[1673939264410,10.05170713,1561.4,1561.2,0.01006943]
[1673939265183,10.05170713,1561.4,1561.1,12.86104]
[1673939265556,8.81670713,1561.4,1561.1,12.86104]
[1673939265795,0.23,1561.3,1561.1,12.86104]
[1673939265980,0.23,1561.3,1561.1,14.789328]
[1673939266611,0.23,1561.3,1561.2,3.0]
[1673939266865,0.07400713,1561.4,1561.3,12.80982]
[1673939267063,7.13e-06,1561.4,1561.3,15.85982]
[1673939268221,7.13e-06,1561.4,1561.3,9.45491]
[1673939268967,7.13e-06,1561.4,1561.3,3.05]
[1673939269282,0.23000713,1561.4,1561.3,3.0]
[1673939270485,7.13e-06,1561.4,1561.3,9.40491]
[1673939270750,7.13e-06,1561.4,1561.3,9.45491]
[1673939272690,11.52142949,1561.5,1561.4,0.00376603]
[1673939272922,13.3404519,1561.5,1561.4,0.00376603]
[1673939278945,10.80051176,1561.5,1561.4,0.00376603]
[1673939280154,10.80051176,1561.5,1561.4,7.34026603]
[1673939280380,10.80051176,1561.5,1561.4,7.39026603]
[1673939280860,0.32301176,1561.5,1561.4,7.39026603]
[1673939281056,0.24901176,1561.5,1561.4,7.39026603]
[1673939283121,0.01901176,1561.5,1561.4,7.39026603]
[1673939283329,0.01901176,1561.5,1561.4,13.79476603]
[1673939287130,0.01901176,1561.5,1561.4,15.31727482]
[1673939288075,0.01901176,1561.5,1561.4,18.31727482]
[1673939291886,0.01901176,1561.5,1561.4,21.43389889]
[1673939293207,0.01901176,1561.5,1561.4,18.31727482]
[1673939293563,0.01901176,1561.5,1561.4,10.39026603]
[1673939294107,0.01901176,1561.5,1561.4,16.79476603]
[1673939296204,0.01561009,1561.5,1561.4,16.79476603]
[1673939296735,0.01561009,1561.5,1561.4,15.859]
[1673939297681,0.01561009,1561.5,1561.4,18.97562407]
[1673939297831,0.01561009,1561.5,1561.4,22.61515244]
[1673939298049,0.01561009,1561.5,1561.4,23.05863602]
[1673939298302,0.01561009,1561.5,1561.4,22.61515244]
[1673939300942,0.01561009,1561.5,1561.4,15.859]
[1673939319131,0.01269765,1561.5,1561.4,15.859]
[1673939319574,0.01269765,1561.5,1561.4,9.4545]
[1673939322830,0.96361538,1561.5,1561.4,9.4545]
[1673939323502,0.01269765,1561.5,1561.4,9.4545]
[1673939324951,0.96361538,1561.5,1561.4,9.4545]
[1673939325131,2.55256476,1561.5,1561.4,9.4545]
[1673939326603,0.01269765,1561.5,1561.4,9.4545]
[1673939335358,0.01269765,1561.5,1561.4,16.81886855]
[1673939335697,0.01269765,1561.5,1561.4,19.99921678]
[1673939335886,0.01269765,1561.5,1561.4,23.55928458]
[1673939336271,0.01269765,1561.5,1561.4,24.03916983]
[1673939336474,0.01269765,1561.5,1561.4,28.80667933]
[1673939336733,0.01269765,1561.5,1561.4,32.19356573]
[1673939336896,0.01269765,1561.5,1561.4,30.27392716]
[1673939337226,0.00685266,1561.5,1561.4,30.27392716]
[1673939337444,0.00685266,1561.5,1561.4,30.27624039]
[1673939338952,0.00685266,1561.5,1561.4,27.96541766]
[1673939340174,0.00685266,1561.5,1561.4,29.88211889]
[1673939340576,0.00685266,1561.5,1561.4,33.41947734]
[1673939340839,0.00085266,1561.5,1561.4,31.49907164]
[1673939341057,0.03257228,1561.6,1561.5,1.93314734]
[1673939341278,0.03257228,1561.6,1561.5,29.15120246]
[1673939341423,0.03257228,1561.6,1561.5,30.15219594]
[1673939342084,0.03257228,1561.6,1561.5,28.2356005]
[1673939342295,0.03257228,1561.6,1561.5,30.15219264]
[1673939342485,0.03257228,1561.6,1561.5,28.2356005]
[1673939343154,0.00057228,1561.6,1561.5,33.00736981]
[1673939343829,0.00057228,1561.6,1561.5,40.80926981]
[1673939344048,0.00057228,1561.6,1561.5,37.2715005]
[1673939344691,0.00057228,1561.6,1561.5,36.79062718]
[1673939345046,0.00057228,1561.6,1561.5,37.2715005]
[1673939345268,0.00057228,1561.6,1561.5,37.71800306]
[1673939345478,0.00057228,1561.6,1561.5,35.80383563]
[1673939348469,0.00057228,1561.6,1561.5,36.31138538]
[1673939350930,0.03494891,1561.7,1561.6,1.21918207]
[1673939351156,0.03494891,1561.7,1561.6,14.4191361]
[1673939351317,0.03494891,1561.7,1561.6,27.71993983]
[1673939352098,0.01800643,1561.7,1561.6,27.71993983]
[1673939352314,0.01800643,1561.7,1561.6,31.25817194]
[1673939352546,0.01800643,1561.7,1561.6,28.70664555]
[1673939353860,0.01800643,1561.7,1561.6,28.22697697]
[1673939355292,0.01800643,1561.7,1561.6,27.71942722]
[1673939355507,0.01800643,1561.7,1561.6,28.22697697]
[1673939357260,0.01800643,1561.7,1561.6,27.71942722]
[1673939357604,0.01800643,1561.7,1561.6,28.22697697]
[1673939361369,0.01800643,1561.7,1561.6,29.66260615]
[1673939363148,0.01800643,1561.7,1561.6,28.70664555]
[1673939365316,0.01800643,1561.7,1561.6,28.70591151]
[1673939366294,0.01800643,1561.7,1561.6,30.62007894]
[1673939367136,0.00928584,1561.7,1561.6,30.62007894]
[1673939368338,0.00028584,1561.7,1561.6,29.18444976]
[1673939368549,0.06094296,1561.9,1561.7,1.002]
[1673939368778,0.06094296,1561.9,1561.8,33.48041159]
[1673939369026,0.06094296,1561.9,1561.8,33.24667103]
[1673939369192,0.06094296,1561.9,1561.8,36.24667103]
[1673939369968,0.06094296,1561.9,1561.8,36.72474479]
[1673939370193,0.06094296,1561.9,1561.8,38.63703983]
[1673939370949,0.06094296,1561.9,1561.8,37.68120448]
[1673939371107,0.06094296,1561.9,1561.8,36.72474479]
[1673939371302,0.06094296,1561.9,1561.8,38.63703983]
[1673939371540,0.06094296,1561.9,1561.8,37.20281855]
[1673939372496,0.08539885,1562.2,1561.8,43.92381855]
[1673939372708,0.08539885,1562.2,1562.1,5.50875762]
[1673939372937,0.08539885,1562.2,1562.1,29.35918387]
[1673939373150,0.08539885,1562.2,1562.1,30.03161328]
[1673939373527,0.08539885,1562.2,1562.1,28.59633315]
[1673939373733,0.08539885,1562.2,1562.1,34.81140304]
[1673939374005,0.03494891,1562.3,1562.1,35.21699703]
[1673939374215,0.03494891,1562.3,1562.2,9.58262407]
[1673939374532,0.03494891,1562.3,1562.2,23.94958285]
[1673939374683,0.03494891,1562.3,1562.2,24.45639856]
[1673939374891,0.03494891,1562.3,1562.2,24.89984229]
[1673939375102,0.03494891,1562.3,1562.2,30.34281033]
[1673939375424,0.03494891,1562.3,1562.2,25.89168598]
[1673939376210,0.03494891,1562.3,1562.2,22.77506191]
[1673939376462,0.03494891,1562.3,1562.2,16.3752734]
[1673939377580,0.03494891,1562.3,1562.2,15.93182967]
[1673939378173,0.03494891,1562.3,1562.2,15.85244]
[1673939378388,0.03494891,1562.3,1562.2,15.93183575]
[1673939379837,0.03494891,1562.3,1562.2,15.85244]
[1673939380085,0.03494891,1562.3,1562.2,15.93183605]
[1673939380258,0.03494891,1562.3,1562.2,15.93183607]
[1673939380467,0.03494891,1562.3,1562.2,15.85244]
[1673939381093,0.03494891,1562.3,1562.2,18.96906407]
[1673939381303,0.11486468,1562.5,1562.3,0.03399109]
[1673939381304,0.09547065,1562.5,1562.3,0.03399109]
[1673939381516,0.09906563,1562.7,1562.4,3.11662407]
[1673939381724,0.09906563,1562.7,1562.5,25.45995649]
[1673939381982,0.09906563,1562.7,1562.6,15.91580407]
[1673939382197,0.09906563,1562.7,1562.6,18.96580407]
[1673939382410,20.26346563,1563.0,1562.6,18.96580407]
[1673939382565,20.26346563,1563.0,1562.8,12.79754]
[1673939382793,20.26346563,1563.0,1562.9,3.0]
[1673939382794,0.069,1563.0,1562.9,3.0]
[1673939383043,0.09906563,1563.1,1562.9,15.79672]
[1673939383200,0.09906563,1563.1,1562.9,15.84672]
[1673939383575,0.04906563,1563.1,1562.9,15.84672]
[1673939383788,0.04906563,1563.1,1562.9,18.96334407]
[1673939384403,0.04906563,1563.1,1563.0,3.11662407]
[1673939384619,0.04906563,1563.1,1563.0,18.91252407]
[1673939384913,0.04906563,1563.1,1563.0,15.8459]
[1673939388197,0.04906563,1563.1,1563.0,18.96252407]
[1673939390409,4.78229696,1563.6,1563.0,21.50021248]
[1673939390572,0.055,1563.7,1563.3,3.11662407]
[1673939390926,1.15381493,1563.9,1563.5,19.1877]
[1673939390927,0.14394622,1563.9,1563.5,19.1877]
[1673939391142,0.14394622,1563.9,1563.5,12.8538]
[1673939391454,0.14394622,1563.9,1563.6,3.0]
[1673939391600,0.14394622,1563.9,1563.6,12.51211407]
[1673939391814,0.14394622,1563.9,1563.7,3.11662407]
[1673939392030,0.14394622,1563.9,1563.8,3.0]
[1673939392297,0.14394622,1563.9,1563.8,15.78934]
[1673939392451,0.14394622,1563.9,1563.8,15.84934]
[1673939394754,0.16334025,1563.9,1563.8,0.01]
[1673939395053,0.16334025,1563.9,1563.5,0.05]
[1673939395054,2.4976819,1563.7,1563.5,0.05]
[1673939395375,4.11662407,1563.6,1563.0,6.46395]
[1673939395540,0.23,1563.5,1563.0,6.39795]
[1673939395898,1.471,1563.4,1563.0,6.39795]
[1673939396040,0.23,1563.3,1563.0,6.39795]
[1673939396250,0.01939403,1563.2,1563.0,6.39795]
[1673939396461,1.47739403,1563.2,1562.9,0.066]
[1673939396688,1.47739403,1563.2,1562.7,6.46493]
[1673939396940,1.23,1563.1,1562.7,6.46493]
[1673939397129,0.01939403,1563.0,1562.7,6.46493]
[1673939398208,12.5544,1563.3,1562.8,17.20033607]
[1673939398209,8.6274,1563.3,1562.8,17.20033607]
[1673939398579,8.6274,1563.3,1562.8,15.91398407]
[1673939399127,10.0984,1563.3,1562.8,15.91398407]
[1673939399340,1.471,1563.2,1562.9,3.0]
[1673939399507,1.471,1563.2,1562.9,9.39813]
[1673939401578,1.471,1563.2,1562.9,15.79649]
[1673939401929,1.471,1563.2,1562.9,9.39813]
[1673939402615,1.49039403,1563.2,1562.9,9.39813]
[1673939403041,0.01939403,1563.2,1562.9,15.79649]
[1673939403348,0.01939403,1563.2,1562.9,18.91311407]
[1673939403586,0.01939403,1563.2,1563.0,3.11662407]
[1673939403713,0.01939403,1563.2,1563.1,15.79508]
[1673939404378,9.9146,1563.4,1563.1,15.79508]
[1673939404611,0.068,1563.4,1563.1,15.79508]
[1673939404777,1.49039403,1563.5,1563.1,15.79508]
[1673939405141,0.23,1563.4,1563.1,15.79508]
[1673939405455,1.49039403,1563.5,1563.1,15.79508]
[1673939408185,19.6783,1563.6,1563.3,12.79344]
[1673939408186,9.3529,1563.6,1563.3,12.79344]
[1673939408340,9.3529,1563.6,1563.5,12.7918]
[1673939408341,0.068,1563.6,1563.5,12.7918]
[1673939408539,2.4976819,1563.7,1563.5,12.7918]
[1673939409241,2.4976819,1563.7,1563.6,3.0]
[1673939410042,2.4976819,1563.7,1563.6,9.39549]
[1673939410620,2.4976819,1563.7,1563.6,15.79098]
[1673939411330,2.4976819,1563.7,1563.6,20.54147034]
[1673939411723,2.4976819,1563.7,1563.6,18.90760407]
[1673939412058,2.4976819,1563.7,1563.6,9.39549]
[1673939412245,2.4976819,1563.7,1563.6,3.0]
[1673939413651,2.51707593,1563.7,1563.6,3.0]
[1673939413870,2.51707593,1563.7,1563.5,3.066]
[1673939414032,2.74707593,1563.7,1563.5,3.0]
[1673939416649,2.51707593,1563.7,1563.5,15.79167]
[1673939418043,2.51707593,1563.7,1563.5,18.90829407]
[1673939418257,2.4976819,1563.7,1563.5,21.13365307]
[1673939419115,2.4976819,1563.7,1563.5,18.90829407]
[1673939422457,2.4976819,1563.7,1563.5,9.39577]
[1673939422673,2.51707593,1563.7,1563.5,9.39577]
[1673939424033,3.97507593,1563.7,1563.5,9.39577]
[1673939424249,3.97507593,1563.7,1563.5,3.0]
[1673939426596,2.693,1563.6,1563.4,3.066]
[1673939426814,2.693,1563.6,1563.4,3.0]
[1673939426960,1.693,1563.6,1563.4,3.0]
[1673939428445,2.693,1563.6,1563.4,3.0]
[1673939429541,1.23,1563.6,1563.4,3.0]
[1673939430157,0.23,1563.6,1563.4,3.0]
[1673939430915,3.51555061,1563.7,1563.5,3.11662407]
[1673939431080,2.49477926,1563.7,1563.6,25.30309407]
[1673939431296,2.49477926,1563.7,1563.6,9.39549]
[1673939432807,2.96067242,1563.7,1563.6,9.39549]
[1673939433380,2.96067242,1563.7,1563.6,3.0]
[1673939433588,4.64867242,1563.7,1563.5,3.066]
[1673939433856,4.64867242,1563.7,1563.5,3.0]
[1673939433857,0.23,1563.6,1563.5,3.0]
[1673939434007,1.23,1563.6,1563.5,3.0]
[1673939434217,0.23,1563.6,1563.4,3.066]
[1673939434465,0.23,1563.6,1563.4,3.0]
[1673939435972,0.23,1563.6,1563.3,3.066]
[1673939436131,0.23,1563.6,1563.3,3.0]
[1673939436583,1.23,1563.6,1563.3,3.0]
[1673939436795,0.23,1563.6,1563.3,3.0]
[1673939438394,3.51149021,1563.6,1563.3,3.0]
[1673939438605,2.17986871,1563.6,1563.3,3.0]
[1673939439542,1.17986871,1563.6,1563.3,3.0]
[1673939439713,0.94986871,1563.6,1563.3,9.39672]
[1673939439926,2.28143218,1563.6,1563.3,9.39672]
[1673939440129,6.88401136,1563.7,1563.3,9.39672]
[1673939440338,6.88401136,1563.7,1563.3,15.79344]
[1673939440986,0.23,1563.6,1563.3,18.94057305]
[1673939441551,0.23,1563.6,1563.3,19.71979284]
[1673939441732,12.77333516,1563.7,1563.3,19.71979284]
[1673939441930,12.84133516,1563.7,1563.3,22.83641691]
[1673939442676,11.89146645,1563.7,1563.4,0.24746335]
[1673939443051,12.84133516,1563.7,1563.5,6.3959]
[1673939443176,3.99793516,1563.7,1563.5,6.3959]
[1673939443554,3.92993516,1563.7,1563.5,6.3959]
[1673939446280,2.28272439,1563.6,1563.5,6.3959]
[1673939446646,2.28272439,1563.6,1563.5,9.3959]
[1673939447824,5.42601136,1563.7,1563.5,15.7918]
[1673939448033,0.94986871,1563.6,1563.5,15.7918]
[1673939448286,2.28322033,1563.6,1563.5,15.7918]
[1673939449037,5.42601136,1563.7,1563.5,15.7918]
[1673939449924,5.42601136,1563.7,1563.5,9.3959]
[1673939450666,2.28351328,1563.6,1563.5,9.3959]
[1673939451173,3.71158948,1563.6,1563.5,9.3959]
[1673939451505,15.21926033,1563.6,1563.4,0.066]
[1673939451758,5.92663347,1563.5,1563.1,17.00614047]
[1673939451980,2.28960659,1563.4,1563.2,0.24199836]
[1673939452161,1.18596202,1563.3,1563.1,16.82508639]
[1673939452372,1.18596202,1563.3,1563.1,15.98332]
[1673939452674,0.23,1563.3,1563.1,15.98332]
[1673939452900,0.23,1563.3,1563.1,6.39742]
[1673939453433,1.95596202,1563.4,1563.1,6.39742]
[1673939453648,1.95596202,1563.4,1563.2,3.0]
[1673939453932,1.471,1563.3,1563.2,3.0]
[1673939454780,2.49496202,1563.4,1563.2,9.39711]
[1673939454997,1.471,1563.4,1563.2,9.39711]
[1673939455409,1.46836883,1563.4,1563.2,9.39711]
[1673939455817,12.89664495,1563.5,1563.2,15.79424]
[1673939456288,11.46265605,1563.5,1563.2,15.79424]
[1673939456678,12.89664495,1563.5,1563.2,15.79424]
[1673939456926,11.46265605,1563.5,1563.2,15.79424]
[1673939459235,2.47734495,1563.5,1563.3,1.579424]
[1673939459453,0.01939403,1563.5,1563.3,7.976004]
[1673939459611,0.24939403,1563.5,1563.4,3.0]
[1673939461550,1.20535605,1563.5,1563.4,3.0]
[1673939462454,2.54403203,1563.5,1563.4,3.0]
[1673939462865,0.24939403,1563.5,1563.4,3.0]
[1673939463071,0.95596202,1563.6,1563.4,3.0]
[1673939463335,13.95902334,1563.7,1563.4,10.982206]
[1673939463560,13.95902334,1563.7,1563.4,17.378516]
[1673939467334,12.52503444,1563.7,1563.4,17.378516]
[1673939467482,3.98463444,1563.7,1563.4,17.378516]
[1673939467688,3.91663444,1563.7,1563.4,17.378516]
[1673939468072,3.91663444,1563.7,1563.5,1.7378516]
[1673939468265,3.91663444,1563.7,1563.6,6.39549]
[1673939468587,2.96067242,1563.7,1563.6,9.39549]
[1673939469593,5.25534862,1563.7,1563.6,9.39549]
[1673939469804,5.32334862,1563.7,1563.6,9.39549]
[1673939470359,2.82856936,1563.7,1563.6,9.39549]
[1673939470570,2.76056936,1563.7,1563.6,9.39549]
[1673939470754,3.76056936,1563.7,1563.6,9.39549]
[1673939470967,2.76056936,1563.7,1563.6,9.39549]
[1673939476431,3.76056936,1563.7,1563.6,3.0]
[1673939476966,2.76056936,1563.7,1563.6,3.0]
[1673939477879,5.19455826,1563.7,1563.6,3.0]
[1673939478104,5.26255826,1563.7,1563.6,3.0]
[1673939478464,4.26255826,1563.7,1563.6,3.0]
[1673939478664,4.19455826,1563.7,1563.6,3.0]
[1673939479195,5.19455826,1563.7,1563.6,3.0]
[1673939479402,5.26255826,1563.7,1563.6,3.0]
[1673939479974,3.82856936,1563.7,1563.6,3.0]
[1673939480291,4.19455826,1563.7,1563.6,3.0]
[1673939480898,2.76056936,1563.7,1563.6,3.0]
[1673939481820,4.19455826,1563.7,1563.6,3.0]
[1673939482754,2.76056936,1563.7,1563.6,3.0]
[1673939483634,0.46589316,1563.7,1563.6,15.78874658]
[1673939484058,0.46589316,1563.7,1563.6,18.90537065]
[1673939484250,0.46589316,1563.7,1563.6,20.71292137]
[1673939484464,0.46589316,1563.7,1563.6,21.48794642]
[1673939484741,1.46867153,1563.9,1563.7,1.0]
[1673939484920,1.46867153,1563.9,1563.7,4.11662407]
[1673939485084,1.46867153,1563.9,1563.8,12.78934]
[1673939485290,1.46867153,1563.9,1563.8,15.78934]
[1673939485545,2.71739728,1563.9,1563.8,15.78934]
[1673939486177,0.51270951,1563.9,1563.8,15.78934]
[1673939487432,1.46867153,1563.9,1563.8,15.78934]
[1673939487606,0.51270951,1563.9,1563.8,15.78934]
[1673939487811,0.51062241,1563.9,1563.8,15.78934]
[1673939489012,0.51062241,1563.9,1563.8,18.32601241]
[1673939490908,0.51062241,1563.9,1563.8,21.44263648]
[1673939492129,0.51062241,1563.9,1563.8,22.91363648]
[1673939492344,0.51062241,1563.9,1563.8,23.24544231]
[1673939493112,0.51062241,1563.9,1563.8,22.91363648]
[1673939493323,0.51062241,1563.9,1563.8,21.44263648]
[1673939497777,0.51062241,1563.9,1563.8,15.78934]